Workbook

Sheet Master Sheet
B1: मास्टर शीट को पूर्ण भरने के बाद SALARY SHEET व OTHER DEDUCTION वाली शीट को जरूर चेक करें।
B2: OFFICE NAME | D2: GOVT. SR. SECONDARY SCHOOL, GORDHANPURA, ATRU, BARAN | O2: TAN NO. | P2: JDHG09699E | V2: YES
V3: NO
B4: EMPLOYEE INFORMATION | J4: DDO INFORMATION | V4: 9%
B5: EMPLOYEE NAME | E5: PARMANAND MEGHWAL | J5: DDO NAME | M5: RAJENDRA KUMAR CHITTORA | Q5: YES | V5: 18%
B6: DESIGNATION | E6: SENIOR TEACHER | J6: DDO FATHER'S NAME | M6: RAM LAL | Q6: NO | V6: 4
B7: PAN NUMBER | E7: ASQPM6311G | J7: DESIGNATION | M7: PRINCIPAL | Q7: 9% | V7: 5
B8: BANK A/C NUMBER | E8: 2225617763 | J8: HOUSE OWNER DETAIL (HRA RENT RECEIPT) | Q8: 18% | V8: 6
B9: MOBILE NUMBER | E9: 9784379510 | J9: HOUSE OWNER NAME | M9: RAM DAYAL NAGAR | V9: 7
J10: ADDRESS | M10: KAWAI SALPURA, ATRU BARAN | V10: 8
B11: SALARY DETAIL | Q11: 4 | R11: PARMANAND MEGHWAL SR. TEACHER | V11: 9
V12: 10
B13: क्या आप NPS (GPF-2004) के कर्मचारी हैं? | H13: YES | J13: MARCH 2022 BASIC | M13: 47900 | V13: 11
B14: क्या आपने समर्पित वेतन लिया? | H14: YES | J14: S.I. | M14: 4000 | V14: 12
B15: समर्पित वेतन लेने का माह ? | H15: 8 | J15: L.I.C. | M15: 2250 | V15: 1
B16: बोनस मिला ? | H16: YES | V16: 2
B17: HRA दर | H17: 9% | J17: RAJTEACHERS.NET | V17: 3
B18: क्या आप वरिष्ठ नागरिक हैं? | H18: YES

Sheet GA-55
C1: GPF 2004 | D1: ='Master Sheet'!H13 -> YES | F1: Surrender | I1: ='Master Sheet'!H14 -> YES | K1: Surrender Month | O1: ='Master Sheet'!H15 -> 8 | P1: HRA | R1: ='Master Sheet'!H17 -> 9% | S1: Bounus | V1: ='Master Sheet'!H16 -> YES | X1: Senior Citizen | AB1: ='Master Sheet'!H18 -> YES | AD1: No | AE1: No
AD2: 9%
C3: ='Master Sheet'!D2 -> GOVT. SR. SECONDARY SCHOOL, GORDHANPURA, ATRU, BARAN | AD3: 18%
C4: INCOME TAX CALCULATION (GA-55) 2022-23
C5: NAME : | D5: ='Master Sheet'!E5 -> PARMANAND MEGHWAL | K5: ='Master Sheet'!E6 -> SENIOR TEACHER | O5: PAN : | P5: ='Master Sheet'!E7 -> ASQPM6311G | T5: TAN: | U5: ='Master Sheet'!P2 -> JDHG09699E | Y5: A/C NO. | AB5: ='Master Sheet'!E8 -> 2225617763 | AD5: Yes | AE5: Yes
M6: RAJTEACHERS.NET | Y6: MOB NO. | AB6: ='Master Sheet'!E9 -> 9784379510 | AD6: No | AE6: No
C7: Month | D7: ALLOWANCES | O7: DEDUCTIONS | AC7: Bill No. & T.V. No.
D8: Basic Pay | E8: Dearness Pay | F8: Leave Pay | G8: Spl. Pay | H8: D.A. | I8: H.R.A. | J8: Washing Allow. | K8: ROP (If any, put the value in minus) | L8: Other Allowance 1 | M8: Other Allowance 2 | N8: Gross Salary | O8: =IF(D1="No","GPF","GPF 2004") -> GPF 2004 | P8: =IF(D1="No","GPF LOAN","") ->  | Q8: SI | R8: SI LOAN + INT | S8: RPMF/RGHS | T8: LIC | U8: Group Insurance Accidental | V8: HBA Premium | W8: HBA Interest | X8: Income Tax / TDS | Y8: HITKARI NIDHI | Z8: CM Corona Fund | AA8: Total Deduction | AB8: Net Payment
B9: 3 | C9: 2022-03-01 | D9: ='Master Sheet'!M13 -> 47900 | E9: 0 | F9: 0 | G9: 0 | H9: =ROUND(31%*D9,0) -> 14849 | I9: =IF($R$1=18%,ROUND(0.18*D9,0),ROUND(0.09*D9,0)) -> 4311 | J9: 0 | K9: 0 | L9: 0 | M9: 0 | N9: =SUM(D9:M9) -> 67060 | O9: =IF(D9<23101,1450,IF(D9<28501,1625,IF(D9<38501,2100,IF(D9<51501,2850,IF(D9<62001,3575,IF(D9<72001,4200,IF(D9<80001,4800,IF(D9<116001,6150,IF(D9<167001,8900,10500))))))))) -> 2850 | P9: 0 | Q9: ='Master Sheet'!M14 -> 4000 | R9: 0 | S9: =IF(D9<18001,265,IF(D9<33501,440,IF(D9<54001,658,875))) -> 658 | T9: ='Master Sheet'!M15 -> 2250 | U9: 0 | X9: 0 | AA9: =SUM(O9:Y9) -> 9758 | AB9: =N9-AA9 -> 57302 | AE9: 4
B10: 4 | C10: 2022-04-01 | D10: =D9 -> 47900 | E10: =IF(E$9=0,0,ROUND(D10/2,0)) -> 0 | F10: =IF(F$9=0,0,F9) -> 0 | G10: 0 | H10: =ROUND(34%*D10,0) -> 16286 | I10: =IF($R$1=18%,ROUND(0.18*D10,0),ROUND(0.09*D10,0)) -> 4311 | J10: =IF(J$9=0,0,J9) -> 0 | K10: =IF(K$9=0,0,K9) -> 0 | L10: 0 | M10: =IF(M$9=0,0,M9) -> 0 | N10: =SUM(D10:M10) -> 68497 | O10: =IF(D10<23101,1450,IF(D10<28501,1625,IF(D10<38501,2100,IF(D10<51501,2850,IF(D10<62001,3575,IF(D10<72001,4200,IF(D10<80001,4800,IF(D10<116001,6150,IF(D10<167001,8900,10500))))))))) -> 2850 | P10: =P9 -> 0 | Q10: =Q9 -> 4000 | R10: =R9 -> 0 | S10: =IF(D10<18001,265,IF(D10<33501,440,IF(D10<54001,658,875))) -> 658 | T10: =T9 -> 2250 | V10: =V9 -> 0 | W10: 0 | X10: =X9 -> 0 | Y10: 0 | AA10: =SUM(O10:Y10) -> 9758 | AB10: 58739 | AE10: 5
B11: 5 | C11: 2022-05-01 | D11: 47900 | E11: =IF($E$9=0,0,ROUND(D11/2,0)) -> 0 | F11: 0 | G11: 0 | H11: =ROUND(34%*D11,0) -> 16286 | I11: 4311 | J11: 0 | K11: =IF(K$9=0,0,K10) -> 0 | L11: =IF(L$9=0,0,L10) -> 0 | M11: 0 | N11: 68497 | O11: 2850 | P11: =P10 -> 0 | Q11: =Q10 -> 4000 | R11: =R10 -> 0 | S11: 658 | T11: =T10 -> 2250 | U11: 0 | V11: 0 | W11: 0 | X11: 0 | Y11: =Y10 -> 0 | AA11: 9758 | AB11: 58739 | AE11: 6
B12: 6 | C12: 2022-06-01 | D12: 47900 | E12: 0 | F12: 0 | G12: 0 | H12: 16286 | I12: 4311 | J12: 0 | K12: 0 | L12: 0 | M12: 0 | N12: 68497 | O12: 2850 | P12: 0 | Q12: 4000 | R12: 0 | S12: 658 | T12: 2250 | U12: 0 | V12: 0 | W12: 0 | X12: 0 | Y12: =Y11 -> 0 | AA12: 9758 | AB12: 58739 | AE12: 7
B13: 7 | C13: 2022-07-01 | D13: =MROUND(ROUND(1.03*D12,0),100) -> 49300 | E13: 0 | F13: =IF(F$9=0,0,F12) -> 0 | G13: =IF(G$9=0,0,G12) -> 0 | H13: 16762 | I13: 4437 | J13: =IF(J$9=0,0,J12) -> 0 | K13: =IF(K$9=0,0,K12) -> 0 | L13: =IF(L$9=0,0,L12) -> 0 | M13: =IF(M$9=0,0,M12) -> 0 | N13: 70499 | O13: 2850 | P13: =P12 -> 0 | Q13: =Q12 -> 4000 | R13: =R12 -> 0 | S13: 658 | T13: =T12 -> 2250 | U13: 0 | V13: =V12 -> 0 | W13: =W12 -> 0 | X13: =X12 -> 0 | Y13: 0 | AA13: 9758 | AB13: 60741 | AE13: 8
B14: 8 | C14: 2022-08-01 | D14: =D13 -> 49300 | E14: 0 | F14: 0 | G14: 0 | H14: 16762 | I14: 4437 | J14: 0 | K14: 0 | L14: 0 | M14: 0 | N14: 70499 | O14: 2850 | P14: 0 | Q14: 4000 | R14: 0 | S14: 658 | T14: 2250 | U14: 0 | V14: 0 | W14: 0 | X14: 0 | Y14: 0 | AA14: 9758 | AB14: 60741 | AE14: 9
B15: 9 | C15: 2022-09-01 | D15: 49300 | E15: 0 | F15: 0 | G15: 0 | H15: 16762 | I15: 4437 | J15: 0 | K15: 0 | L15: 0 | M15: 0 | N15: 70499 | O15: 2850 | P15: 0 | Q15: 4000 | R15: 0 | S15: 658 | T15: 2250 | U15: 0 | V15: 0 | W15: 0 | X15: 0 | Y15: 0 | AA15: 9758 | AB15: 60741 | AE15: 10
B16: 10 | C16: 2022-10-01 | D16: 49300 | E16: 0 | F16: =IF(F$9=0,0,F15) -> 0 | G16: =IF(G$9=0,0,G15) -> 0 | H16: =ROUND(38%*D16,0) -> 18734 | I16: 4437 | J16: 0 | K16: 0 | L16: 0 | M16: 0 | N16: 72471 | O16: 2850 | P16: 0 | Q16: 4000 | R16: 0 | S16: 658 | T16: 2250 | U16: 0 | V16: 0 | W16: 0 | X16: 0 | Y16: 0 | AA16: 9758 | AB16: 62713 | AE16: 11
B17: 11 | C17: 2022-11-01 | D17: 49300 | E17: 0 | F17: =IF(F$9=0,0,F16) -> 0 | G17: 0 | H17: =ROUND(38%*D17,0) -> 18734 | I17: 4437 | J17: 0 | K17: 0 | L17: 0 | M17: 0 | N17: 72471 | O17: 2850 | P17: 0 | Q17: 4000 | R17: 0 | S17: 658 | T17: 2250 | U17: 0 | V17: 0 | W17: 0 | X17: 0 | Y17: 0 | AA17: 9758 | AB17: 62713 | AE17: 12
B18: 12 | C18: 2022-12-01 | D18: 49300 | E18: 0 | F18: =IF(F$9=0,0,F17) -> 0 | G18: 0 | H18: 18734 | I18: 4437 | J18: 0 | K18: 0 | L18: 0 | M18: 0 | N18: 72471 | O18: 2850 | P18: 0 | Q18: 4000 | R18: 0 | S18: 658 | T18: 2250 | U18: 0 | V18: 0 | W18: 0 | X18: 0 | Y18: 250 | AA18: 10008 | AB18: 62463 | AE18: 1
B19: 1 | C19: 2023-01-01 | D19: 49300 | E19: 0 | F19: =IF(F$9=0,0,F18) -> 0 | G19: 0 | H19: 18734 | I19: 4437 | J19: 0 | K19: 0 | L19: 0 | M19: 0 | N19: 72471 | O19: 2850 | P19: 0 | Q19: 4000 | R19: 0 | S19: 658 | T19: 2250 | U19: 0 | V19: 0 | W19: 0 | X19: 0 | AA19: 9758 | AB19: 62713 | AE19: 2
B20: 2 | C20: 2023-02-01 | D20: 49300 | E20: 0 | F20: =IF(F$9=0,0,F19) -> 0 | G20: 0 | H20: 18734 | I20: 4437 | J20: 0 | K20: 0 | L20: 0 | M20: 0 | N20: 72471 | O20: 2850 | P20: 0 | Q20: 4000 | R20: 0 | S20: 658 | T20: 2250 | U20: 0 | V20: 0 | W20: 0 | X20: 0 | AA20: 9758 | AB20: 62713 | AE20: 3
C21: DA Arrear 34% | H21: =(ROUND(34%*D9,0)-ROUND(31%*D9,0))*3 -> 4311 | N21: =H21 -> 4311 | O21: =H21 -> 4311 | T21: 0 | AA21: 4311 | AB21: 0
C22: DA Arrear 38% | H22: =(ROUND(38%*D13,0)-ROUND(34%*D13,0))*3 -> 5916 | N22: =H22 -> 5916 | O22: =H22 -> 5916 | T22: 0 | AA22: 5916 | AB22: 0
C23: Surrender | D23: =IF(I1="NO",0,IF(O1=3,D20,VLOOKUP(O1,B9:D20,3,FALSE)))/2 -> 24650 | H23: =IF(AND(O1>3,O1<7),ROUND(34%*D23,0),ROUND(38%*D23,0)) -> 9367 | N23: 34017 | AA23: 0 | AB23: 34017
C24: Bonus | D24: =IF(V1="Yes",6774,0) -> 6774 | N24: 6774 | O24: =ROUND(D24*25/100,0) -> 1694 | AA24: 1694 | AB24: 5080
C25: Fixation Arrear | N25: 0 | AA25: 0 | AB25: 0
C26: Salary Arrear 1 | N26: 0 | AA26: 0 | AB26: 0
C27: Salary Arrear 2 | N27: 0 | AA27: 0 | AB27: 0
C28: Salary Arrear 3 | N28: 0 | AA28: 0 | AB28: 0
C29: Other | E29: 0 | F29: 0 | N29: 0 | AA29: 0 | AB29: 0
C30: TOTAL | D30: =SUM(D9:D29) -> 617424 | E30: =SUM(E9:E29) -> 0 | F30: 0 | G30: 0 | H30: 227257 | I30: 52740 | J30: 0 | K30: 0 | L30: 0 | M30: 0 | N30: 897421 | O30: 46121 | P30: 0 | Q30: 48000 | R30: 0 | S30: 7896 | T30: 27000 | U30: 0.00 | V30: 0 | W30: 0 | X30: 0 | Y30: 250 | Z30: 0 | AA30: 129267 | AB30: 768154
E35: Signature of Employee | AB35: Signature of DDO

Sheet Other Deduction
A2: वेतन के अतिरिक्त कटौतियाँ, आय/जमा राशि एवं छूट का
A3: ='GA-55'!D5& " , " &'GA-55'!K5&" PAN- "&'GA-55'!P5 -> PARMANAND MEGHWAL , SENIOR TEACHER PAN- ASQPM6311G
A4: 1. मकान किराया भत्ता (छूट जो लेनी हैं।) | B4: 51228.00 | D4: 18. बचत खाते की जमा राशि पर प्राप्त ब्याज (80 TTA/80 TTB) हेतु | E4: 0.00 | F4: BASIC+D.A. | DR4: UPS Kuhada Khurd
A5: 2. मनोरंजन भत्ता धारा 16(ii) के अंतर्गत | B5: 0.00 | D5: 19. अन्य आय - (एफडी पर ब्याज, अन्य ब्याज या अन्य स्त्रोत से आय आदि का योग) | E5: 0.00 | F5: ='GA-55'!N30-'GA-55'!I30 -> 844681
A6: 3. व्यवसाय कर धारा 16(iii) के अंतर्गत | B6: 0.00 | D6: 20. अन्य जमा राशि (धारा 80C के अंतर्गत) | E6: 0.00 | F6: Taxable Amt
A7: 4. गृह संपत्ति से प्राप्त किराया - आय | B7: 0.00 | D7: 21. धारा 80CCC -पेंशन प्लान हेतु अंशदान (एनपीएस के अलावा) | E7: 0.00 | F7: =#REF! -> 
A8: 5. गृहकर | B8: 0.00 | D8: 22. 80CCD(1B) - नवीन पेंशन योजना में अतिरिक्त अंशदान (अधिकतम रु. 50,000) | E8: 0.00 | F8: Tax Deposited
A9: 6. गृह ऋण किस्त मूल (जो वेतन से नहीं काटा गया) | B9: 0.00 | D9: 23. धारा 80D - चिकित्सा बीमा प्रीमियम (सामान्य-25,000 व वरिष्ठ नागरिक 50,000) | E9: 0.00 | F9: ='GA-55'!X30 -> 0.00
A10: 7. गृह ऋण किस्त ब्याज (जो वेतन से नहीं काटा गया) | B10: 0.00 | D10: 24. धारा 80DD विकलांग आश्रितों के चिकित्सा उपचार (अधिकतम: 75,000 व वरिष्ठ नागरिक 125,000) | E10: 0.00 | F10: Rebate Under Section 80C, 80CCC, 80CCD(1)
A11: 8. जीवन बीमा प्रीमियम जो (जो वेतन से नहीं काटा गया) LIC | B11: 0.00 | D11: 25. धारा 80DDB - विशिष्ट रोगों के उपचार हेतु (सामान्य 40,000 , वरिष्ठ नागरिक 1 लाख) | E11: 0.00 | DR11: UPS Banediya Charnan
A12: 9. पी.एल.आई. (PLI) | B12: 0.00 | D12: 26. धारा 80E उच्च शिक्षा हेतु लिए ऋण का ब्याज (धारा 10E) | E12: 0.00 | DR12: UPS Laxmipura Dhakaran
A13: 10. ट्यूशन फीस (Tution Fees) | B13: 0.00 | D13: 27. धारा 80G धर्मार्थ संस्थाओं आदि को दिये दान (क श्रेणी में 100 प्रतिशत एवं ख श्रेणी में 50 प्रतिशत) | E13: 0.00 | F13: =#REF! ->  | DR13: UPS Pathraj Kala
A14: 11. यू.एल.आई.पी./वार्षिक प्लान | B14: 0.00 | D14: 28. धारा 80U स्थाई रूप से शारीरिक असमर्थता की दशा में (अधिकतम 75,000 तथा अधिनियम 1995 के अनुसार 125,000) | E14: 0.00
A15: 12. राष्ट्रीय बचत पत्र (NSC) | B15: 0.00 | D15: 29. धारा 80GGA अनुमोदित वैज्ञानिक, सामाजिक, ग्रामीण विकास आदि हेतु दिया गया दान | E15: 0.00 | F15: मकान किराया छूट के रशीद की आवश्यकता | DR15: PS Aarampura
A16: 13. राष्ट्रीय बचत पत्र पर अदत्त ब्याज | B16: 0.00 | D16: 30. इक्विटी लिंक सेविंग स्कीम | E16: 0.00 | DR16: UPS Laxmipura Dhakaran
A17: 14. लोक भविष्य निधि (PPF) | B17: 0.00 | D17: 31. स्थगित वार्षिकी (Defferred Annuty) | E17: 0.00 | DR17: UPS Raghunathpura
A18: 15. राष्ट्रीय बचत स्कीम (NSS) | B18: 0.00 | D18: 32. राहत धारा 89 के तहत | E18: 0.00 | F18: =IF(B4>=1,(F5*10%+B4),0) -> 135696.10 | DR18: UPS Manda
A19: 16. सुकन्या समृद्धि योजना में जमा राशि (SSY) | B19: 0.00 | D19: 33. वेतन बिल के अलावा जमा कराया गया आयकर (TDS) | E19: 0.00 | DR19: UPS Sandla
A20: 17. धारा 10(14) के अंतर्गत अन्य भत्ते | B20: 0.00 | D20: 34. धारा 80GGC राजनीतिक पार्टियों को दिया गया दान | E20: 0.00
A21: =#REF! ->  | D21: =#REF! ->  | E21: HRA | F21: ='GA-55'!I30 -> 52740.00 | DR21: UPS Ramsinghpura
A22: ="Total Rebate of (US 80C, 80CCC,80CCD(1)) = "&#REF! ->  | D22: ="Investable Amount = "&(150000-#REF!) ->  | DR22: GSS Ganeshganj
A23: WWW.RAJTEACHERS.NET

Sheet Form 16
A1: FORM NO.16
A2: [See rule 31 (1) (a)]
A3: Part A
A4: Certificate under section 203 of the Income Tax Act, 1961 for tax deducted
A5: at source from income chargeable under the head “ Salaries “
A6: Name and address of the employer | G6: Name and Designation of the employee
A7: ='Master Sheet'!M9 -> RAM DAYAL NAGAR | G7: ='GA-55'!D5 -> PARMANAND MEGHWAL
A8: ='Master Sheet'!M7 -> PRINCIPAL | G8: ='GA-55'!K5 -> SENIOR TEACHER
A9: ='GA-55'!C3 -> GOVT. SR. SECONDARY SCHOOL, GORDHANPURA, ATRU, BARAN | G9: ='GA-55'!C3 -> GOVT. SR. SECONDARY SCHOOL, GORDHANPURA, ATRU, BARAN
A11: PAN of the Deducter | D11: TAN of the Deducter | G11: PAN of the Employee
D12: ='GA-55'!U5 -> JDHG09699E | G12: ='GA-55'!P5 -> ASQPM6311G
A13: TDS Circle where annual | G13: PERIOD | J13: Assessment Year
A14: return / statement under | G14: FROM | I14: TO | J14: 2025-26
A15: section 206 is to be filed | G15: 01.04.2024 | I15: 31.03.2025
A16: Smmary of amount Paid/credited and tax Deducted at source thereon in respect of the Employee
A17: Quarter(s) | C17: Receipt Numbersof Original Quaterly Statements of TDS Under Sub-Section (3) of Section 200 | F17: Amount Paid cridited | H17: Amount of Tax Deducted (Rs) | K17: Amount of Tax Deposited / Remitted (Rs)
A18: Quarter 1 | F18: 0 | H18: =SUM('GA-55'!X9:X11) -> 0 | K18: =H18 -> 0
A19: Quarter 2 | F19: 0 | H19: =SUM('GA-55'!X12:X14)+'GA-55'!X21 -> 0 | K19: =H19 -> 0
A20: Quarter 3 | F20: 0 | H20: =SUM('GA-55'!X15:X17)+'GA-55'!X24 -> 0 | K20: =H20 -> 0
A21: Quarter 4 | F21: 0 | H21: =SUM('GA-55'!X18:X29) -> 0 | K21: =H21 -> 0
A22: Total | F22: =SUM(F18:F21) -> 0 | H22: =SUM(H18:H21) -> 0 | K22: =SUM(K18:K21) -> 0
A23: I.DETAILS TAX DEDUCTED AND DEPOSITED INTO CENTRAL GOVERNMENT ACCOUNT THROUGH BOOK ADJUSTMENT
A24: S.No | B24: Tax Deposited In Respect | E24: Book Identification Number (BIN)
B25: of the deducter | E25: Receipt Numbers of | G25: DDO Serial No in | I25: Date Of Transfer | K25: Status of Maching
C26: (Rs) | E26: Form No.24G | G26: Form No.24G | I26: Form No.24G | K26: with Form.No 24G
I27: (dd/mm/yyyy)
A28: 1 | B28: ='GA-55'!X9 -> 0
A29: 2 | B29: ='GA-55'!X10 -> 0
A30: 3 | B30: ='GA-55'!X11 -> 0
A31: 4 | B31: ='GA-55'!X12 -> 0
A32: 5 | B32: ='GA-55'!X13 -> 0
A33: 6 | B33: ='GA-55'!X14 -> 0
A34: 7 | B34: ='GA-55'!X15 -> 0
A35: 8 | B35: ='GA-55'!X16 -> 0
A36: 9 | B36: ='GA-55'!X17 -> 0
A37: 10 | B37: ='GA-55'!X18 -> 0
A38: 11 | B38: ='GA-55'!X19 -> 0
A39: 12 | B39: ='GA-55'!X20 -> 0
A40: 13 | B40: =SUM('GA-55'!X21+'GA-55'!X22+'GA-55'!X23+'GA-55'!X24+'GA-55'!X25+'GA-55'!X26+'GA-55'!X27+'GA-55'!X28+'GA-55'!X29) -> 0
A41: Total (Rs) | B41: =SUM(B28:B40) -> 0
A43: II.DETAILS TAX DEDUCTED AND DEPOSITED INTO CENTRAL GOVERNMENT ACCOUNT THROUGH BOOK CHALLANA
A44: S.No | B44: Tax Deposited In Respect | E44: Book Identification Number (CIN)
B45: of the deducter | E45: BRS Code of the | G45: Date on Which | I45: Challana Serial | K45: Status of Maching
C46: (Rs) | E46: Bank Branch | G46: Tax Deposited | I46: Number | K46: with Form.No 24G
G47: (dd/mm/yyyy)
A48: 1
A49: 2
A50: 3
A51: 4
A52: 5
A53: 6
A54: 7
A55: 8
A56: 9
A57: 10
A58: 11
A59: 12
A60: 13
A61: Total (Rs) | B61: =SUM(B48:D59) -> 0
A62: Verification
A63: I, | B63: ='Master Sheet'!M5 -> RAJENDRA KUMAR CHITTORA | E63: Son/Doughter of | G63: ='Master Sheet'!M6 -> RAM LAL | J63: Working In the Capacity Of
A64: ='Master Sheet'!M7 -> PRINCIPAL | D64: (Designation) do hereby certify that a sum of Rs. | I64: =#REF! ->  | J64: (in words)
F65: has beeen deducted at source and paid to the credit of the Central Government.
A66: I further certify that the information given above is true and correct based on the book of accounts, documents and TDS Statements, TDS Deposited and other available records.
A68: Notes :
A69: 1. Government deductors to fill information in item I if tax is paid without production of an income-tax challan and in item II if tax .
A70: is paid accompanied by an income-tax challan
A71: 2. Non-Government deductors to fill information in item II.
A72: 3. The deductor shall furnish the address of the Commissioner of Income-tax (TDS) having jurisdiction as regards TDS
A73: statements of the assessee.
A74: 4. If an assessee is employed under one employer only during the year, certificate in Form No. 16 issued for the quarter ending on
A75: 31st March of the financial year shall contain the details of tax deducted and deposited for all the quarters of the financial year.
A76: 5. If an assessee is employed under more than one employer during the year, each of the employers shall issue Part
A77: A of the certificate in Form No. 16 pertaining to the period for which such assessee was employed with each of the employers.
A78: Part B (Annexure) of the certificate in Form No.16 may be issued by each of the employers or the last employer at the
A79: option of the assessee.
A80: 6. In items I and II, in column for tax deposited in respect of deductee, furnish total amount of TDS and education cess."
A82: Part B
A83: DETAILS OF SALARY PAID AND ANY OTHER INCOME AND TAX DEDUCTED
A84: 1. Gross Salary *
B85: ( a ) Salary as per provisions contained in section 17 (1) | I85: 1187667
B86: ( b ) Value of perquisites under section 17 (2)
B87: (as per Form No. 12 BA, wherever applicable)
B88: ( c ) Profits in lieu of Salary under section 17 (3)
B89: (as per Form No. 12 BA, wherever applicable)
B90: ( d ) Total | J90: =I85+I86+I87+I88+I89 -> 1187667
A92: 2. Less : Allowance to the extent exempt under section 10
A93: a)HRA | I93: 0
A94: b)Other
A95: 3. Balance (1-2) | J95: =J90-I93-I94 -> 1187667
A97: 4. Deductions :
B98: (a) Standard deduction | F98: Rs. | G98: 50000
B99: (b) Entertainment allowance | F99: Rs. | G99: 0
B100: (c) Tax on Employment | F100: Rs. | G100: 2500
A101: 5. Aggregate of 4 (a to c) | I101: =+G98+G99+G100 -> 52500
A103: 6. Income chargeable under the Head ‘Salaries’(3-5) | L103: =IF(AND((J95>50000)),(J95-I101),0) -> 1135167
A105: 7. Add. : Any other income reported by the employee
B106: Less:- Loss From House Properties | L106: 21064
A108: 8. Gross total income (6+7) | L108: =L103+L105-L106 -> 1114103
G109: Gross Amount | I109: Qualifying Amt. | K109: Deductible Amt.
A110: 9. Deductions Under Chapter VIA
A111: A. | B111: Sections 80C,80CC and 80CCD1
A112: (a) | B112: Section 80C
B113: (i) | C113: GPF/NPS | F113: Rs. | G113: 235639 | I113: =G113 -> 235639 | K113: =I113 -> 235639
B114: (ii) | C114: STATE INSURANCE | F114: Rs. | G114: 0 | I114: 0 | K114: 0
B115: (iii) | C115: LIC | F115: Rs. | G115: 24192 | I115: 24192 | K115: 24192
B116: (iv) | C116: Group Ins. | F116: Rs. | G116: 531 | I116: 531 | K116: 531
B117: (vi) | C117: House Loan Installment | F117: Rs. | G117: 50563 | I117: 50563 | K117: 50563
B118: (vii) | C118: Others | F118: Rs. | G118: 12 | I118: 12 | K118: 12
A119: (b) | B119: Section 80CCC | F119: Rs. | I119: 0 | K119: 0
A120: (c) | B120: Section 80CCD | F120: Rs. | I120: 0 | K120: 0
A121: Aggregate amount deductible under the three sections | G121: =SUM(G113:G120) -> 310937 | I121: =SUM(I113:I120) -> 310937 | K121: =IF(SUM(K113:L118)>150000,150000,SUM(K113:L118)) -> 150000
A122: i.e.80C, 80CCC and 80CCD
A124: (d) | B124: Section 80CCD2 | F124: Rs. | G124: 0 | I124: =G124 -> 0 | K124: =I124 -> 0
A125: (e) | B125: Section 80CCD (1B) | F125: Rs. | G125: ='[1]Tax Old Regime'!Q33 -> 0 | I125: =G125 -> 0 | K125: =I125 -> 0
A127: B. | B127: Other Sections ( e.g. 80E, 80G, 80TTA etc) Under Chapter VIA
G128: Gross Amount | I128: Qualifying Amt. | K128: Deductible Amt.
B129: (i) | C129: Other Deductions | F129: Rs. | I129: =G129 -> 0 | K129: =I129 -> 0
B130: (ii) | F130: Rs. | I130: =G130 -> 0 | K130: =I130 -> 0
B131: (iii) | F131: Rs. | I131: =G131 -> 0 | K131: =I131 -> 0
A132: 10. Aggregate of deductible amount under chapter VI-A | K132: =K121+K124+K125+K129+K130+K131 -> 150000 | L132: 0
A134: 11. Total Income (8-10 ) | K134: =+L108-K132 -> 964103
A136: 12. Tax on Total Income | K136: =Sheet1!O5 -> 105321
A137: 13. Rebate U/S 87a | K137: 0
A138: 14. Tax Payable on total income (12-13) | K138: =+K136-K137 -> 105321
A139: 15.Education & Health Cess 4% | K139: =ROUND(K138*0.04,0) -> 4213
A140: 16. Tax payable (14+15) | K140: =+K138+K139 -> 109534
A141: 17. Relife Under Section 89 (attach details) | K141: 0
A142: 18. Tax payable (16-17) | K142: =K140-K141 -> 109534
A143: 19.Tax Deducted at source U/S 192 | K143: 0
A144: 20. Tax payable / refundable (17-18) | K144: =K141-K142 -> -109534
A145: Verification
A146: I, | B146: =B63 -> RAJENDRA KUMAR CHITTORA | E146: Son/Doughter of | G146: =G63 -> RAM LAL | J146: Working In the Capacity Of
A147: =A64 -> PRINCIPAL | D147: (Designation) do hereby certify that the information given above is true correct based on the
A148: book of accounts, documents and TDS Statements, TDS Deposited and other available records.
F153: Signature & Seal
A155: Place: | F155: Full Name | H155: ='Master Sheet'!M5 -> RAJENDRA KUMAR CHITTORA
A156: Date: | F156: Designation | H156: ='Master Sheet'!M7 -> PRINCIPAL

Sheet Sheet1 (hidden)
A1: 2,50,000 rd | D1: Nil | F1: 3,00,000 rd | I1: Nil | N1: #- | O1: 0.00
A2: 2,50,001-5,00,000 | D2: 5% | F2: 3,00,001-5,00,000 | I2: 5% | J2: 5,00,000 rd | M2: Nil | N2: #- | O2: =IF(Q2<250001,0,IF(Q2>500000,12500,((Q2-250000)*0.05))) -> 12500.00 | Q2: ='Form 16'!K134 -> 964103
A3: 5,00,001-10,00,000 | D3: 20% | F3: 5,00,001-10,00,000 | I3: 20% | J3: 5,00,001-10,00,000 | M3: 20% | N3: #- | O3: =(IF(Q2<500001,0,IF(Q2>1000000,100000,((Q2-500000)*0.2)))) -> 92820.60
A4: 10,00,000 ls vf/kd | D4: 30% | F4: 10,00,000 ls vf/kd | I4: 30% | J4: 10,00,000 ls vf/kd | M4: 30% | N4: #- | O4: =IF(Q2<1000001,0,((Q2-1000000)*0.3)) -> 0.00
A5: ¼1½ ;ksx vk;dj | N5: #- | O5: =SUM(O1:O4) -> 105320.60
